bitfinex-derivatives/quotes_ETHF0:USTF0_20251021
["timestamp","ask_amount","ask_price","bid_price","bid_amount"]
[1761011167312,0.1424,3962.5,3962.4,0.67954201]
[1761011167513,0.1424,3962.5,3962.0,0.0024199]
[1761011167514,0.4272,3962.1,3962.0,0.0024199]
[1761011167709,10.7050296,3962.1,3962.0,0.0024199]
[1761011168012,10.7050296,3962.1,3961.3,1.36134429]
[1761011168013,0.88149,3961.4,3961.3,0.67954201]
[1761011168206,0.88149,3961.4,3960.8,0.67954201]
[1761011168207,0.45434,3961.0,3960.8,0.67954201]
[1761011168414,0.73916,3960.8,3960.7,0.67954201]
[1761011168710,0.73916,3960.8,3960.7,0.2117]
[1761011168912,0.73916,3960.8,3960.7,0.00224145]
[1761011169215,0.88156,3960.8,3960.7,0.00224145]
[1761011170112,5.88156,3960.8,3960.7,0.00224145]
[1761011171008,0.88161,3960.3,3960.2,0.3415]
[1761011171208,9.81461,3960.3,3960.2,0.3415]
[1761011171714,9.81461,3960.3,3960.2,0.5532]
[1761011171715,50.61461,3960.3,3960.2,0.5532]
[1761011171914,50.47452323,3960.3,3960.2,0.55514538]
[1761011172215,8.93531323,3960.3,3960.2,0.78134538]
[1761011172414,8.93531323,3960.3,3960.2,5.78134538]
[1761011172618,41.25429,3961.4,3961.2,0.3415]
[1761011172809,41.25429,3961.4,3961.0,0.1297]
[1761011172810,41.25429,3961.4,3961.3,0.7794]
[1761011173008,50.18729,3961.4,3961.3,0.5532]
[1761011173212,9.38729,3961.4,3961.3,0.7794]
[1761011173513,9.38729,3961.4,3961.0,0.1297]
[1761011173514,0.1424,3961.6,3961.5,0.1297]
[1761011173810,50.61671108,3961.6,3961.0,0.3414]
[1761011174007,0.59668,3961.5,3961.0,0.3414]
[1761011174205,0.73908,3961.5,3961.4,0.5532]
[1761011174600,0.73908,3961.5,3961.0,0.1297]
[1761011174601,0.73912,3961.1,3961.0,0.3414]
[1761011174813,0.73912,3961.1,3961.0,0.5676]
[1761011175317,0.73912,3961.1,3961.0,0.9091]
[1761011177317,0.59672,3961.1,3961.0,0.9091]
[1761011177616,0.45432,3961.1,3961.0,0.9091]
[1761011178007,0.73852,3961.1,3961.0,0.9091]
[1761011178203,0.88062,3961.1,3961.0,0.4712]
[1761011178409,0.88062,3961.1,3961.0,0.6985]
[1761011178609,0.73852,3961.1,3961.0,0.6985]
[1761011179413,0.88062,3961.1,3961.0,0.4712]
[1761011179616,0.45438,3960.7,3960.5,0.357]
[1761011179922,9.0761,3960.6,3960.5,0.5732]
[1761011180313,9.0761,3960.6,3960.5,0.902]
[1761011182516,9.2182,3960.6,3960.5,0.6858]
[1761011182824,9.3603,3960.6,3960.5,0.3288]
[1761011183817,9.3603,3960.6,3960.5,0.4557]
[1761011185015,9.2182,3960.6,3960.5,0.8992]
[1761011185324,9.0761,3960.6,3960.5,0.8992]
[1761011186615,0.1421,3961.2,3960.6,0.3288]
[1761011186915,0.1421,3961.2,3960.5,0.5704]
[1761011186916,0.59644,3960.9,3960.8,0.3288]
[1761011187116,0.73858,3960.6,3960.5,0.3542]
[1761011187811,0.73858,3960.6,3960.5,0.6819]
[1761011188014,9.68558,3960.6,3960.5,0.6819]
[1761011188915,9.68558,3960.6,3960.5,0.9087]
[1761011191915,9.82748,3960.6,3960.5,0.3277]
[1761011192111,0.88011,3960.3,3960.2,0.21144538]
[1761011192315,9.68421,3960.3,3960.2,0.21144538]
[1761011192518,9.68421,3960.3,3960.2,0.43824538]
[1761011192722,9.68421,3960.3,3960.2,0.76594538]
[1761011194429,8.946,3960.3,3960.2,0.76594538]
[1761011195426,41.93586,3961.0,3960.5,0.1328]
[1761011195427,40.8,3961.0,3960.5,0.1328]
[1761011195620,0.73813,3961.0,3960.9,0.764]
[1761011197016,0.59623,3961.0,3960.9,0.764]
[1761011198019,0.73813,3961.0,3960.9,0.764]
[1761011198635,0.59623,3961.0,3960.9,0.764]
[1761011206338,8.945,3961.1,3960.9,1.11641586]
[1761011206522,8.945,3961.1,3961.0,2.03124586]
[1761011207433,8.945,3961.1,3961.0,1.57691586]
[1761011208131,8.945,3961.1,3961.0,1.80436286]
[1761011209138,8.945,3961.1,3961.0,2.25869286]
[1761011210436,8.945,3961.1,3961.0,1.35113]
[1761011210734,8.945,3961.1,3961.0,0.8968]
[1761011211338,8.945,3961.1,3961.0,1.8036194]
[1761011211635,0.45431,3961.2,3961.1,0.764]
[1761011211935,0.45431,3961.2,3961.1,1.21832]
[1761011212234,9.53217,3961.5,3961.4,0.764]
[1761011212930,9.67407,3961.5,3961.4,0.764]
[1761011214132,9.67407,3961.5,3961.1,0.67999376]
[1761011214133,0.88001,3961.2,3961.1,0.67999376]
[1761011214337,9.67311,3961.2,3961.1,0.2095]
[1761011214527,0.88002,3961.1,3961.0,0.81279376]
[1761011214723,0.88002,3961.1,3961.0,0.4605]
[1761011217724,0.88002,3961.1,3961.0,0.67]
[1761011219442,0.88002,3961.1,3961.0,0.3277]
[1761011220039,0.88002,3961.1,3961.0,0.4606]
[1761011220339,0.88006,3960.8,3960.7,0.67999376]
[1761011220538,9.81506,3960.8,3960.7,1.22849376]
[1761011220842,9.67316,3960.8,3960.7,1.22849376]
[1761011223540,9.81506,3960.8,3960.7,1.00669376]
[1761011223931,0.2838,3960.7,3960.6,0.67999376]
[1761011224132,10.51150331,3960.8,3960.5,0.81279376]
[1761011224133,0.73818,3960.6,3960.5,0.81279376]
[1761011224339,0.88008,3960.6,3960.5,0.81279376]
[1761011224633,0.88008,3960.6,3960.5,1.13949376]
[1761011225030,0.2838,3960.5,3960.4,0.67999376]
[1761011225233,9.3617,3960.5,3960.4,1.00669376]
[1761011226541,9.2198,3960.5,3960.4,0.7726]
[1761011227042,9.67419,3960.5,3960.4,0.7726]
[1761011227642,9.39039,3960.5,3960.4,0.7726]
[1761011229633,9.81609,3960.5,3960.4,0.3267]
[1761011229838,9.81609,3960.5,3960.2,0.00194538]
[1761011229839,0.88011,3960.3,3960.2,0.32864538]
[1761011230852,0.88011,3960.3,3960.2,1.00909177]
[1761011233647,0.88011,3960.3,3960.2,1.23089177]
[1761011234244,0.88011,3960.3,3960.2,0.55044538]
[1761011235549,0.88011,3960.3,3960.2,0.32864538]
[1761011235746,0.45442,3960.2,3959.6,1.36134429]
[1761011235954,0.45453,3959.3,3959.2,0.3141]
[1761011236252,0.45461,3958.6,3958.5,0.1329]
[1761011236544,9.39761,3958.6,3958.5,0.1329]
[1761011236942,9.400729,3958.6,3958.5,0.13528694]
[1761011238051,9.400729,3958.6,3958.5,0.44938694]
[1761011239849,0.457729,3958.6,3958.5,0.66498694]
[1761011240048,9.399729,3958.6,3958.5,0.88508694]
[1761011242052,0.457729,3958.6,3958.5,0.88508694]
[1761011242263,8.946119,3958.6,3958.5,0.88508694]
[1761011242853,8.946119,3958.6,3958.5,0.44938694]
[1761011244259,13.946119,3958.6,3958.5,0.13528694]
[1761011244750,13.946119,3958.6,3958.5,0.44938694]
[1761011245255,13.946119,3958.6,3958.5,0.4454]
[1761011245454,14.400729,3958.6,3958.5,0.4454]
[1761011246355,14.400729,3958.6,3958.5,0.44816457]
[1761011247357,55.200729,3958.6,3958.5,0.44816457]
[1761011250757,50.200729,3958.6,3958.5,0.44816457]
[1761011252156,51.32187231,3958.6,3958.5,0.44816457]
[1761011252454,50.199729,3958.6,3958.5,0.44816457]
[1761011256360,50.76049725,3958.6,3958.5,0.44816457]
[1761011258049,50.76049725,3958.6,3958.5,0.66476457]
[1761011260363,50.76150931,3958.6,3958.5,0.66476457]
[1761011261158,50.76150931,3958.6,3958.5,0.44816457]
[1761011261361,51.66315415,3958.6,3958.5,0.44816457]
[1761011262063,0.45467,3958.1,3958.0,0.1313]
[1761011262259,9.95745031,3958.1,3958.0,0.1313]
[1761011262956,9.95745031,3958.1,3958.0,0.13309902]
[1761011263963,10.85909515,3958.1,3958.0,0.45449902]
[1761011264158,9.95745031,3958.1,3958.0,0.45449902]
[1761011264766,11.30790179,3958.1,3958.0,0.45449902]
[1761011265152,9.95745031,3958.1,3958.0,0.45449902]
[1761011267762,11.74902414,3958.1,3958.0,0.00179902]
[1761011268267,9.95745031,3958.1,3958.0,0.45399902]
[1761011268464,9.95745031,3958.1,3958.0,0.67059902]
[1761011268764,9.95745031,3958.1,3958.0,0.45399902]
[1761011271062,9.95745031,3958.1,3958.0,0.89109902]
[1761011272568,1.01645031,3958.1,3958.0,0.89109902]
[1761011272768,9.95845031,3958.1,3958.0,0.89109902]
[1761011274068,9.95845031,3958.1,3958.0,0.45399902]
[1761011276070,0.45469,3957.9,3957.8,0.02526656]
[1761011276269,0.45472,3957.6,3957.5,0.6709]
[1761011276470,10.29814755,3957.6,3957.5,0.6709]
[1761011276668,10.85992786,3957.6,3957.5,0.6709]
[1761011277070,9.95850031,3957.6,3957.5,0.67393922]
[1761011277266,9.95850031,3957.6,3957.5,0.00303922]
[1761011277472,0.45478,3957.1,3957.0,0.1313]
[1761011277668,9.95856031,3957.1,3957.0,0.1313]
[1761011277965,9.95856031,3957.1,3956.5,0.1308]
[1761011277966,0.45484,3956.6,3956.5,0.3474]
[1761011278167,9.95862031,3956.6,3956.5,0.3474]
[1761011278361,9.95862031,3956.6,3956.5,0.34973263]
[1761011278767,9.95862031,3956.6,3956.5,0.00233263]
[1761011278967,9.95862031,3956.6,3956.5,0.13153263]
[1761011279268,9.95862031,3956.6,3956.5,0.67893263]
[1761011279472,50.75862031,3956.6,3956.5,0.67893263]
[1761011279976,9.95862031,3956.6,3956.5,0.67893263]
[1761011280460,9.95862031,3956.6,3956.5,0.44833263]
[1761011280862,9.95862031,3956.6,3956.5,0.89453263]
[1761011281870,9.50378031,3956.6,3956.5,0.89453263]
[1761011283070,0.56178031,3956.6,3956.5,5.89453263]
[1761011283264,9.40482,3956.8,3956.7,0.763]
[1761011283568,9.96840079,3956.8,3956.7,0.763]
[1761011284571,9.96840079,3956.8,3956.7,0.5474]
[1761011284868,0.45484,3956.6,3956.5,0.44833263]
[1761011285172,1.01842079,3956.6,3956.5,0.44833263]
[1761011285872,1.01842079,3956.6,3956.5,0.89453263]
[1761011286064,0.45484,3956.6,3956.5,0.89453263]
[1761011288475,0.45484,3956.6,3956.5,0.44833263]
[1761011289676,0.45484,3956.6,3956.5,0.00233263]
[1761011290165,0.45489,3956.1,3956.0,0.1308]
[1761011290372,0.45491,3956.0,3955.9,0.3168]
[1761011291174,0.45491,3956.0,3955.9,0.31894956]
[1761011293174,8.948,3956.1,3955.4,0.2306]
[1761011293175,0.45496,3955.5,3955.4,0.2306]
[1761011293371,9.40296,3955.5,3955.4,0.2306]
[1761011293576,9.40296,3955.5,3955.4,0.4462]
[1761011293777,9.40296,3955.5,3955.4,0.763]
[1761011294275,9.40579408,3955.5,3955.4,0.76545686]
[1761011294575,0.00283408,3955.5,3955.4,0.76545686]
[1761011294765,8.95183408,3955.5,3955.4,0.76545686]
[1761011295173,8.95183408,3955.5,3955.4,5.76545686]
[1761011296074,8.95183408,3955.5,3955.4,0.76545686]
[1761011299182,9.40679408,3955.5,3955.4,0.76545686]
[1761011300677,9.40679408,3955.5,3955.4,1.22043686]
[1761011300873,8.95183408,3955.5,3955.4,1.22043686]
[1761011301379,8.95183408,3955.5,3955.4,6.22043686]
[1761011301681,0.45779408,3955.5,3955.4,6.22043686]
[1761011302883,0.00283408,3955.5,3955.4,6.22043686]
[1761011304682,0.00283408,3955.5,3955.4,1.22043686]
[1761011304882,0.00283408,3955.5,3955.4,0.76545686]
[1761011312287,0.00283408,3955.5,3955.4,0.31925686]
[1761011313282,5.00283408,3955.5,3955.4,0.00245686]
[1761011314383,45.80283408,3955.5,3955.4,0.00245686]
[1761011318591,40.80283408,3955.5,3955.4,0.32265686]
[1761011318986,0.455,3955.2,3955.1,0.3202]
[1761011319192,10.75141513,3955.2,3955.1,0.3202]
[1761011319687,11.43392513,3955.2,3954.8,0.3202]
[1761011319984,0.45503,3954.9,3954.8,0.5474]
[1761011320192,0.45503,3954.9,3954.8,0.76184567]
[1761011320493,41.25503,3954.9,3954.8,0.76184567]
[1761011320894,0.45503,3954.9,3954.8,0.76184567]
[1761011321595,9.40303,3954.9,3954.8,0.76184567]
[1761011323190,8.948,3954.9,3954.8,0.76184567]
[1761011323701,9.40303,3954.9,3954.8,0.76184567]
[1761011324197,2.02720539,3955.3,3955.2,0.7598]
[1761011324495,51.32858625,3955.3,3955.2,0.5474]
[1761011324695,50.20299,3955.3,3955.2,0.7598]
[1761011324896,0.45498,3955.4,3955.3,0.3202]
[1761011325198,9.40298,3955.4,3955.3,0.7598]
[1761011331599,0.45501,3955.1,3955.0,0.1271]
[1761011331796,9.40301,3955.1,3955.0,0.1271]
[1761011332096,9.40301,3955.1,3955.0,0.8869]
[1761011332299,50.20301,3955.1,3955.0,0.8869]
[1761011332898,50.20301,3955.1,3955.0,0.6745]
[1761011334197,50.20301,3955.1,3955.0,0.4473]
[1761011334404,0.45503,3954.9,3954.8,0.32224567]
[1761011334698,1.58062625,3954.9,3954.8,0.32224567]
[1761011335693,1.58062625,3954.9,3954.8,0.54944567]
[1761011335895,1.58062625,3954.9,3954.8,0.76184567]
[1761011337105,1.58062625,3954.9,3954.8,0.54944567]
[1761011339298,1.13763,3954.8,3953.8,0.90648626]
[1761011339600,1.13763,3954.8,3952.5,0.1337]
[1761011339601,1.12559625,3953.9,3952.1,0.55838626]
[1761011339803,2.48012337,3952.2,3952.1,0.3318]
[1761011340002,9.91393567,3952.2,3952.1,0.7672]
[1761011340211,9.42611213,3952.2,3952.1,1.89279625]
[1761011340413,9.42916928,3952.2,3952.1,0.76918939]
[1761011340908,0.90293567,3952.9,3952.7,0.4354]
[1761011341114,0.90293567,3953.6,3953.1,0.4354]
[1761011341411,0.45521,3953.4,3953.3,0.3318]
[1761011341709,1.35737932,3953.4,3953.3,0.3318]
[1761011341909,1.36011298,3953.4,3953.3,0.3318]
[1761011342104,0.45793366,3953.4,3953.3,0.7672]
[1761011344312,0.00273366,3953.4,3953.3,5.7672]
[1761011346816,0.00273366,3953.4,3953.3,0.7672]
[1761011348412,0.00273366,3953.4,3953.3,0.3318]
[1761011348710,5.90490298,3953.4,3953.0,0.1337]
[1761011348905,0.45524,3953.1,3953.0,0.1337]
[1761011349117,10.62083625,3953.1,3953.0,0.9009]
[1761011349422,10.62083625,3953.1,3953.0,0.4655]
[1761011349914,0.45527,3952.8,3952.7,0.3318]
[1761011350114,1.58086625,3952.8,3952.7,0.5548]
[1761011350713,1.12559625,3952.8,3952.7,0.7672]
[1761011350914,0.45527,3952.9,3952.8,0.3318]
[1761011351216,0.45527,3952.9,3952.8,0.7672]
[1761011351217,1.58086625,3952.9,3952.8,0.7672]
[1761011352322,1.12559625,3952.9,3952.8,0.7672]
[1761011354620,1.12559625,3952.9,3952.8,0.3318]
[1761011354810,6.12559625,3952.9,3952.8,0.3318]
[1761011355321,6.69957034,3952.9,3952.8,0.3318]
[1761011355617,6.69957034,3952.9,3952.8,0.5548]
[1761011355822,6.69957034,3952.9,3952.8,0.3318]
[1761011357124,1.12559625,3952.9,3952.8,0.562]
[1761011357620,1.12559625,3952.9,3952.1,0.00198939]
[1761011357621,0.45534,3952.2,3952.1,0.33958939]
[1761011357812,10.62193625,3952.2,3952.1,0.33958939]
[1761011358012,11.19571645,3952.2,3952.1,0.33958939]
[1761011358324,10.62193625,3952.2,3952.1,0.33958939]
[1761011358824,10.62193625,3952.2,3952.1,0.56978939]
[1761011359423,10.62193625,3952.2,3952.1,0.33958939]
[1761011360510,10.62193625,3952.2,3952.1,0.78598939]
[1761011360718,9.041,3952.2,3952.1,0.78598939]
[1761011360913,9.041,3952.2,3952.1,5.78598939]
[1761011361928,1.13792,3953.8,3952.7,0.784]
[1761011361929,1.12559625,3952.8,3952.7,0.784]
[1761011362223,6.222,3952.8,3952.7,0.784]
[1761011362424,9.052,3953.3,3953.2,0.784]
[1761011362822,9.052,3953.3,3953.2,5.784]
[1761011363831,0.00273366,3953.4,3953.3,0.784]
[1761011364215,0.45529,3952.7,3952.0,8.9167]
[1761011364419,0.45529,3952.7,3952.6,0.3376]
[1761011364625,0.45534,3952.2,3952.1,0.23218939]
[1761011364828,0.45534,3952.2,3952.1,0.44838939]
[1761011365334,8.87,3952.3,3952.1,0.44838939]
[1761011365526,9.32534,3952.3,3952.1,0.44838939]
[1761011366619,9.32534,3952.3,3952.2,0.784]
[1761011367333,9.901105,3952.3,3952.2,0.784]
[1761011369128,9.901105,3952.3,3951.5,0.1337]
[1761011369129,0.45541,3951.6,3951.5,0.1337]
[1761011369438,9.52041,3951.6,3951.5,0.4643]
[1761011369627,10.09727251,3951.6,3951.5,0.1337]
[1761011369832,0.45545,3951.3,3951.2,0.3306]
[1761011370023,1.03284698,3951.3,3951.2,0.3306]
[1761011370220,0.57739698,3951.3,3951.2,0.76039899]
[1761011370430,9.075,3951.8,3951.7,0.3306]
[1761011370620,9.65300579,3951.8,3951.7,0.7573]
[1761011371027,9.65300579,3951.8,3951.7,0.3306]
[1761011371638,9.65300579,3951.8,3951.7,0.7573]
[1761011371827,9.075,3951.8,3951.7,0.7573]
[1761011372735,9.65257907,3951.8,3951.7,0.7573]
[1761011373832,9.65257907,3951.8,3951.7,0.5397]
[1761011374233,9.65257907,3951.8,3951.7,0.7573]
[1761011374433,9.65257907,3951.8,3951.7,0.3306]
[1761011374635,9.65257907,3951.8,3951.7,0.5397]
[1761011375438,9.65257907,3951.8,3951.7,0.7573]
[1761011376737,0.57757907,3951.8,3951.7,5.7573]
[1761011376940,0.45537,3952.0,3951.9,0.5482]
[1761011377140,1.03696898,3952.0,3951.9,0.7573]
[1761011378243,0.58159898,3952.0,3951.9,0.7573]
[1761011378441,9.085,3952.2,3952.1,0.7573]
[1761011378638,9.66682588,3952.2,3952.1,0.7573]
[1761011379248,0.58182588,3952.2,3952.1,0.7573]
[1761011379636,0.45533,3952.3,3952.1,0.4267]
[1761011379945,0.58182588,3952.2,3952.1,0.4267]
[1761011380339,0.58182588,3952.2,3952.1,0.7573]
[1761011380648,0.45533,3952.3,3952.2,0.3306]
[1761011380840,1.03746811,3952.3,3952.2,0.7573]
[1761011382545,0.45531,3952.5,3952.3,0.3306]
[1761011382740,0.45531,3952.5,3952.4,0.7573]
[1761011382941,1.03726264,3952.5,3952.4,0.7573]
[1761011383745,0.58195264,3952.5,3952.4,0.7573]
[1761011384055,9.54028,3952.7,3952.6,0.7573]
[1761011384351,10.12214394,3952.7,3952.6,0.7573]
[1761011385656,1.03714394,3952.7,3952.6,0.7573]
[1761011387460,0.58186394,3952.7,3952.6,1.2126]
[1761011387651,0.58186394,3953.0,3952.6,0.882]
[1761011388153,0.45526,3952.9,3952.8,0.7573]
[1761011388354,1.03712394,3952.9,3952.8,0.7573]
[1761011390869,1.03712394,3952.9,3952.6,0.3306]
[1761011390870,0.45528,3952.7,3952.6,0.3306]
[1761011391055,9.52128,3952.7,3952.6,0.5397]
[1761011391358,0.45532,3952.4,3952.3,0.3306]
[1761011391559,0.45532,3952.4,3952.0,0.1383]
[1761011391560,0.45535,3952.1,3952.0,0.1383]
[1761011391759,0.45541,3951.6,3951.5,0.1383]
[1761011391962,0.45541,3951.6,3951.5,0.4689]
[1761011392365,0.45545,3951.3,3951.2,0.33369899]
[1761011392668,1.0363953,3951.3,3951.2,0.33369899]
[1761011394055,0.09552848,3951.3,3951.2,0.76039899]
[1761011394267,0.4554,3951.7,3951.6,0.7573]
[1761011395061,0.4554,3951.7,3951.6,0.3306]
[1761011395767,0.4554,3951.7,3951.6,0.5397]
[1761011396769,9.53133,3952.3,3952.2,0.5397]
[1761011396965,9.53133,3952.3,3952.2,0.3306]
[1761011397261,0.45533,3952.3,3952.2,0.3306]
[1761011397468,9.53333,3952.3,3952.2,0.3306]
[1761011398871,0.45532,3952.4,3952.2,0.3306]
[1761011399266,0.90216932,3952.5,3952.3,0.3207]
[1761011399459,1.35746932,3952.6,3952.5,0.4553]
[1761011400367,0.4553,3952.6,3952.5,0.1346]
[1761011400768,0.45533,3952.3,3952.2,0.3207]
[1761011400967,9.53133,3952.3,3952.2,0.3207]
[1761011401965,9.53133,3952.3,3952.2,0.5335]
[1761011402272,0.90122509,3952.7,3952.5,0.1346]
[1761011402575,0.45526,3952.9,3952.8,0.5335]
[1761011402775,9.53126,3952.9,3952.8,0.5335]
[1761011403469,9.076,3952.9,3952.8,0.7648]
[1761011406073,0.57855923,3952.9,3952.8,0.7648]
[1761011406266,0.00273366,3953.4,3953.3,0.3207]
[1761011406465,0.00273366,3953.4,3953.0,0.1346]
[1761011406773,0.45524,3953.1,3953.0,0.1346]
[1761011407166,1.02688015,3953.1,3953.0,0.4553]
[1761011408668,0.57164015,3953.1,3953.0,0.8994]
[1761011409366,0.45524,3953.2,3953.0,0.8994]
[1761011409367,0.00273366,3953.4,3953.3,0.4441]
[1761011409576,0.00273366,3953.4,3953.3,0.7648]
[1761011409876,0.57441526,3953.4,3953.3,0.7648]
[1761011410279,0.45533,3952.3,3952.2,0.3207]
[1761011410475,0.45533,3952.3,3952.0,0.459]
[1761011410476,0.45535,3952.1,3952.0,0.459]
[1761011410772,1.0270316,3952.1,3952.0,0.459]
[1761011411976,1.0270316,3952.1,3952.0,0.6718]
[1761011412179,1.0270316,3952.1,3952.0,0.9031]
[1761011412477,0.5716816,3952.1,3952.0,0.9031]
[1761011412679,0.5716816,3952.1,3952.0,0.459]
[1761011414373,0.5716816,3952.1,3952.0,0.9031]
[1761011415081,0.5716816,3952.1,3952.0,0.6718]
[1761011415273,0.5716816,3952.1,3952.0,0.9031]
[1761011416076,0.5716816,3952.1,3952.0,0.459]
[1761011416281,0.5716816,3952.1,3952.0,0.6804]
[1761011416785,0.5716816,3952.1,3952.0,0.8982]
[1761011417678,0.45535,3952.2,3952.1,0.7809]
[1761011417876,9.093,3952.3,3952.2,0.3417]
[1761011418181,0.45533,3952.4,3952.1,0.4392]
[1761011418182,0.45533,3952.4,3952.3,0.7809]
[1761011418781,9.54925,3953.0,3952.9,0.7809]
[1761011418976,10.12130855,3953.0,3952.9,0.7809]
[1761011420679,9.54925,3953.0,3952.9,0.7809]
[1761011420880,0.45525,3953.0,3952.9,0.7809]
[1761011421276,9.09573366,3953.4,3953.0,0.3417]
[1761011421585,0.45522,3953.3,3953.2,0.7809]
[1761011433495,0.45522,3953.3,3953.2,0.7871]
[1761011438586,0.45522,3953.3,3953.2,1.24233]
[1761011438889,0.45522,3953.3,3953.2,0.7871]
[1761011446592,0.00273366,3953.4,3953.3,1.24772]
[1761011447400,0.45793366,3953.4,3953.3,0.7925]
[1761011447595,1.35862664,3953.4,3953.3,0.3471]
[1761011447796,1.9294809,3953.4,3953.3,0.3471]
[1761011448394,1.02878792,3953.4,3953.3,0.3471]
[1761011452205,1.02878792,3953.4,3953.3,0.5775]
[1761011453409,1.93283008,3953.4,3953.3,0.5775]
[1761011454408,1.93283008,3953.4,3953.3,0.7925]
[1761011454608,1.02878792,3953.4,3953.3,0.7925]
[1761011460397,0.45513,3954.0,3953.9,0.7507]
[1761011461416,1.83907692,3954.0,3953.9,0.3288]
[1761011461708,0.77318,3953.6,3953.5,0.3424]
[1761011461908,1.89949629,3953.6,3953.5,0.5525]
[1761011462112,1.89949629,3953.6,3953.5,0.8813]
[1761011466214,0.45516,3953.8,3953.7,0.4219]
[1761011466412,0.45516,3953.8,3953.7,0.7507]
[1761011467516,0.00290476,3954.0,3953.9,0.7507]
[1761011468608,0.45803476,3954.0,3953.9,0.7507]
[1761011471022,0.00290476,3954.0,3953.9,0.7507]
[1761011472015,0.00290476,3954.0,3953.9,6.87701629]
[1761011474224,0.90404216,3955.2,3955.0,0.1306]
[1761011474516,2.23995059,3956.2,3955.0,0.1306]
[1761011474517,0.1365,3956.5,3955.8,0.7507]
[1761011474720,0.45491,3956.0,3955.9,0.7507]
[1761011475018,1.00961,3956.0,3955.9,0.7507]
[1761011475215,1.00961,3956.0,3955.9,0.75373902]
[1761011475216,1.01138742,3956.0,3955.9,0.75373902]
[1761011476317,1.23238742,3956.0,3955.9,0.75373902]
[1761011477327,1.01138742,3956.0,3955.9,0.75373902]
[1761011477625,0.66758742,3956.0,3955.9,0.75373902]
[1761011477928,0.21267742,3956.0,3955.9,0.75373902]
[1761011478121,0.00177742,3956.0,3955.9,0.75373902]
[1761011479325,0.00177742,3956.0,3955.9,5.75373902]
[1761011479530,1.01152,3956.8,3956.7,0.765]
[1761011479828,0.1365,3957.0,3956.4,0.2092]
[1761011479829,1.36445,3956.5,3956.4,0.2092]
[1761011480027,0.89798,3956.2,3956.1,0.5498]
[1761011480326,1.36451,3956.0,3955.9,0.21223902]
[1761011480520,1.367251,3956.0,3955.9,0.21223902]
[1761011480725,1.367251,3956.0,3955.9,0.00303902]
[1761011481023,1.367251,3956.0,3954.5,1.046737]
[1761011481024,0.89812,3955.0,3954.9,0.765]
[1761011481528,1.23872,3955.0,3954.9,0.765]
[1761011482022,2.49093629,3955.0,3954.9,0.42656076]
[1761011482329,2.49093629,3955.0,3954.9,0.21136076]
[1761011482726,2.49093629,3955.0,3954.9,0.76716076]
[1761011483529,0.45502,3955.0,3954.9,0.76716076]
[1761011483825,0.2161,3955.2,3955.1,0.4244]
[1761011484026,1.01166,3955.5,3955.4,0.2092]
[1761011484230,1.01166,3955.5,3955.4,0.765]
[1761011484424,1.23866,3955.5,3955.4,0.765]
[1761011486234,1.23863,3955.8,3955.7,0.765]
[1761011487532,2.36494629,3955.8,3955.7,0.4244]
[1761011488137,2.36494629,3955.8,3955.7,0.7419]
[1761011488934,1.23863,3955.8,3955.7,0.7419]
[1761011489736,1.01163,3955.8,3955.7,0.7419]
[1761011490833,1.22933,3955.8,3955.7,0.7419]
[1761011491631,1.22933,3955.8,3955.7,0.4244]
[1761011492234,1.22933,3955.8,3955.7,0.7419]
[1761011492633,0.45499,3955.3,3955.0,0.1306]
[1761011492838,0.98459,3955.3,3955.2,0.7588]
[1761011493339,1.20229,3955.3,3955.2,0.2125]
[1761011493732,1.20229,3955.3,3955.2,0.4413]
[1761011493932,1.20229,3955.3,3955.2,0.7588]
[1761011494735,1.20229,3955.3,3955.2,0.4413]
[1761011495242,1.20229,3955.3,3955.2,0.7588]
[1761011496536,0.98454,3955.7,3955.6,0.7588]
[1761011499445,1.20224,3955.7,3955.6,0.7588]
[1761011499841,1.20229,3955.3,3955.2,1.21379]
[1761011500343,1.20229,3955.3,3955.2,0.7588]
[1761011500946,1.20229,3955.3,3955.2,1.2138]
[1761011501845,0.5296,3955.3,3955.2,1.2138]
[1761011502945,0.98453,3955.8,3955.7,0.7588]
[1761011507052,1.20223,3955.8,3955.7,0.7588]
[1761011510055,1.20223,3955.8,3955.7,0.4413]
[1761011512757,1.20223,3955.8,3955.7,0.7588]
[1761011512957,1.20223,3955.8,3955.7,0.4413]
[1761011515362,1.20223,3955.8,3955.7,0.7588]
[1761011516755,0.98453,3955.8,3955.7,0.7588]
[1761011517060,0.45493,3955.8,3955.7,0.7588]
[1761011517461,0.77583,3955.8,3955.7,0.7588]
[1761011517762,0.45493,3955.8,3955.7,1.21374]
[1761011518764,1.00443,3955.8,3955.7,0.7588]
[1761011519264,1.22113,3955.8,3955.7,0.2125]
[1761011519855,1.22113,3955.8,3955.7,0.5318]
[1761011520065,1.22113,3955.8,3955.7,0.7568]
[1761011520660,0.4453,3955.4,3955.2,0.90940171]
[1761011520861,0.8965,3955.0,3954.9,0.91156247]
[1761011521064,2.24633662,3955.0,3954.9,0.00216076]
[1761011521564,0.3209,3954.8,3954.0,1.12490171]
[1761011521765,0.7662,3954.1,3954.0,0.2155]
[1761011521961,0.7662,3954.1,3954.0,0.7598]
[1761011522570,0.7662,3954.1,3954.0,0.76182945]
[1761011522970,0.7662,3954.1,3954.0,1.67018739]
[1761011523269,0.7662,3954.1,3954.0,0.21752945]
[1761011523474,0.7662,3954.1,3954.0,0.00202945]
[1761011524163,0.7662,3954.1,3954.0,0.21752945]
[1761011524367,0.3209,3954.1,3954.0,0.76182945]
[1761011524563,0.3209,3954.3,3954.2,0.7598]
[1761011524974,0.7662,3954.3,3954.2,0.7598]
[1761011525173,0.5495,3954.1,3954.0,0.32132945]
[1761011525474,0.7662,3954.1,3954.0,0.76182945]
[1761011525868,0.7662,3954.1,3954.0,0.44252945]
[1761011526579,0.5495,3954.1,3954.0,0.76182945]
[1761011527777,1.00461,3954.3,3954.2,0.7598]
[1761011528473,0.45513,3954.1,3954.0,0.21752945]